bitfinex/quotes_ETHUSD_20250517
["timestamp","ask_amount","ask_price","bid_price","bid_amount"]
[1747440463025,2.54123887,2526.6,2525.4,0.7649]
[1747440463230,2.54123887,2526.6,2526.4,3.95815076]
[1747440463531,3.95849246,2526.3,2525.1,8.0]
[1747440463695,3.9583668,2526.3,2525.0,3.96024488]
[1747440463901,3.95855516,2526.2,2525.3,3.95984972]
[1747440464596,8.0,2526.4,2525.3,11.067]
[1747440464925,8.0,2526.4,2524.8,0.7649]
[1747440464926,11.21,2526.3,2524.8,11.8319]
[1747440465126,17.08,2526.8,2524.9,9.18319]
[1747440465284,3.95616568,2527.7,2526.2,3.9584687]
[1747440465485,17.08,2528.0,2526.1,12.71985038]
[1747440465729,3.95649416,2527.5,2526.6,3.95784672]
[1747440465888,11.237,2527.9,2526.1,8.7612]
[1747440466086,11.237,2527.9,2526.3,3.95835807]
[1747440466087,3.95600917,2527.8,2526.3,3.95835807]
[1747440466285,40.112,2527.7,2523.8,12.1572]
[1747440466619,8.0,2525.5,2523.8,12.1572]
[1747440466818,3.96010936,2525.2,2523.9,3.96212211]
[1747440466998,11.558,2525.2,2523.8,12.1572]
[1747440467202,3.96045302,2525.0,2523.8,16.11944319]
[1747440467407,11.557,2525.0,2524.0,3.96194292]
[1747440467605,3.96056914,2524.9,2524.1,1.53579429]
[1747440467905,11.396,2524.8,2521.5,17.085]
[1747440468106,8.0,2524.7,2521.7,0.7612]
[1747440468435,3.96242094,2523.8,2521.8,0.20672247]
[1747440468638,11.726,2523.8,2522.2,8.0]
[1747440468794,4.156,2523.5,2519.9,3.9683957]
[1747440468993,0.1,2522.9,2520.0,0.39683957]
[1747440469236,11.96526428,2521.9,2519.6,0.7612]
[1747440469394,3.96717247,2520.7,2519.8,8.0]
[1747440469594,4.156,2523.0,2520.0,8.0]
[1747440469809,4.156,2523.0,2519.8,8.0]
[1747440469810,3.96586035,2521.6,2520.2,8.0]
[1747440470137,8.0,2521.6,2520.4,3.96758408]
[1747440470333,16.15060648,2521.7,2520.5,0.47287841]
[1747440470627,3.96558332,2521.7,2520.5,4.44031583]
[1747440470832,3.96503773,2522.1,2520.9,3.96671242]
[1747440470998,12.21,2522.5,2521.3,8.0]
[1747440471196,12.211,2523.0,2521.2,0.7777]
[1747440471394,3.96382121,2522.9,2521.8,3.9653395]
[1747440471635,3.96259312,2523.6,2521.7,17.1]
[1747440471827,3.96320145,2523.3,2522.2,3.96477282]
[1747440472023,3.96320145,2523.3,2521.7,29.328]
[1747440472024,0.30162449,2524.4,2521.7,17.1]
[1747440472193,3.9624361,2523.7,2521.7,17.1]
[1747440472398,0.30162449,2524.4,2522.2,3.96466201]
[1747440472399,3.9631003,2523.3,2522.2,3.96466201]
[1747440472599,3.96275014,2523.5,2522.2,3.96466201]
[1747440472600,3.96323315,2523.2,2522.2,3.96472061]
[1747440472832,4.0884063,2524.1,2522.3,12.064]
[1747440473019,3.96212211,2523.9,2522.3,12.064]
[1747440473334,12.241,2523.8,2522.5,4.7420099]
[1747440473495,12.241,2523.8,2522.7,3.96393963]
[1747440473496,3.96256091,2523.7,2522.7,3.96393963]
[1747440473692,8.05035807,2524.1,2522.7,3.96400681]
[1747440473896,3.96229715,2523.8,2522.8,3.96369537]
[1747440474117,3.96214863,2523.9,2522.9,3.96360624]
[1747440474328,3.9624003,2523.8,2522.8,3.96384969]
[1747440474532,3.96197629,2524.0,2522.9,1.19638497]
[1747440474753,12.209,2523.9,2523.0,12.067]
[1747440474905,12.212,2523.9,2523.1,3.96326456]
[1747440475103,12.212,2523.9,2523.1,3.96337838]
[1747440475414,3.96114592,2524.6,2523.1,3.96337838]
[1747440475415,0.20675713,2525.0,2523.1,8.0]
[1747440475623,12.185,2524.9,2522.9,1.19638497]
[1747440475824,3.96150575,2524.3,2522.7,17.103]
[1747440476027,0.83001377,2524.9,2522.7,17.103]
[1747440476028,3.96070975,2524.8,2523.3,3.96303083]
[1747440476262,16.15594428,2524.7,2523.4,3.96279019]
[1747440476565,0.20671605,2526.2,2523.7,0.8318]
[1747440476724,0.20671605,2526.2,2523.9,8.8318]
[1747440476903,8.0,2525.8,2524.0,24.799]
[1747440477109,3.95757479,2526.8,2522.6,3.96416395]
[1747440477110,17.103,2525.7,2522.6,3.96416395]
[1747440477345,17.103,2525.7,2522.6,0.8318]
[1747440477346,3.96164635,2524.3,2522.6,0.8318]
[1747440477515,16.59449692,2524.3,2523.1,3.96332604]
[1747440477726,16.59449692,2524.3,2522.9,3.96367006]
[1747440477727,8.0,2524.2,2522.9,3.96367006]
[1747440477909,3.96180887,2524.1,2522.9,3.96367006]
[1747440478109,11.96166807,2524.2,2523.0,3.96351311]
[1747440478341,3.96272924,2523.6,2522.6,0.8318]
[1747440478544,17.104,2524.6,2522.6,1.53500408]
[1747440478744,3.96135293,2524.4,2523.4,0.55]
[1747440479038,8.0,2524.2,2523.4,0.55]
[1747440479238,8.0,2524.6,2523.7,3.96241769]
[1747440479448,3.96041567,2525.0,2523.9,0.55]
[1747440479653,17.104,2525.3,2523.9,0.55]
[1747440479654,3.96055939,2524.9,2524.0,0.55]
[1747440479857,8.0,2524.7,2523.9,0.55]
[1747440480162,12.398,2525.0,2523.3,0.55]
[1747440480163,3.96045576,2525.0,2523.3,0.55]
[1747440480316,8.0,2524.8,2522.5,10.16451761]
[1747440480517,8.0,2524.8,2522.8,8.0]
[1747440480725,0.20674722,2525.1,2523.2,8.0]
[1747440480971,3.96008567,2525.2,2524.3,3.96149427]
[1747440481254,0.20668046,2526.2,2526.1,3.95867146]
[1747440481439,16.70000605,2528.5,2526.0,0.8318]
[1747440481440,12.778,2527.2,2526.0,0.8318]
[1747440481614,12.778,2527.1,2526.0,0.8318]
[1747440481821,12.778,2527.0,2526.0,4.79060241]
[1747440482021,17.104,2527.7,2526.0,0.8318]
[1747440482228,25.513,2527.6,2526.0,0.8318]
[1747440482422,17.104,2527.7,2526.1,0.55]
[1747440482423,0.20652112,2527.7,2526.1,0.55]
[1747440482622,12.764,2527.6,2526.1,0.55]
[1747440482861,3.95693206,2527.3,2526.2,0.55]
[1747440483156,12.755,2527.2,2526.3,3.95835807]
[1747440483457,12.755,2527.2,2526.0,0.8318]
[1747440483666,12.755,2527.2,2526.3,3.95833084]
[1747440483827,12.755,2527.2,2526.1,3.95851838]
[1747440484156,12.755,2527.2,2526.0,0.8318]
[1747440484157,17.31050104,2528.1,2526.0,0.8318]
[1747440484462,3.95619965,2527.7,2526.8,3.95746711]
[1747440484667,3.95398434,2529.1,2526.3,3.95835807]
[1747440484828,4.16162598,2528.4,2526.1,4.43755925]
[1747440485026,3.95460117,2528.7,2526.3,8.0]
[1747440485336,3.95508948,2528.4,2526.5,8.55]
[1747440485660,3.95475997,2528.6,2526.5,8.0]
[1747440485661,25.432,2528.3,2526.5,8.0]
[1747440485823,25.416,2528.2,2526.7,0.55]
[1747440486164,25.416,2528.2,2527.3,3.95677809]
[1747440486357,3.95501839,2528.5,2527.7,3.95603816]
[1747440486562,0.20643441,2529.0,2528.0,3.95564365]
[1747440486766,12.662,2528.9,2528.4,3.95501649]
[1747440486931,3.952994,2529.8,2527.6,0.55]
[1747440486932,0.2063947,2529.5,2527.9,0.7623]
[1747440487264,3.95219198,2530.3,2526.4,0.7623]
[1747440487265,3.95658316,2527.5,2526.4,0.7623]
[1747440487566,3.95679183,2527.3,2525.9,0.7623]
[1747440487727,8.0,2527.3,2525.9,0.7623]
[1747440487928,8.0,2526.7,2525.9,0.7623]
[1747440488123,3.95761711,2526.8,2525.9,0.7623]
[1747440488549,8.0,2526.6,2524.4,4.72350867]
[1747440488862,3.95918269,2525.8,2524.4,0.7623]
[1747440489179,3.95961195,2525.5,2524.4,0.7623]
[1747440489340,11.95948518,2525.6,2524.4,0.7623]
[1747440489667,3.96004708,2525.3,2524.4,0.7623]
[1747440489872,17.095,2525.7,2524.4,0.7623]
[1747440490060,12.908,2526.0,2524.6,0.55]
[1747440490369,12.908,2526.0,2524.8,0.55]
[1747440490670,16.8669532,2526.0,2524.9,3.96055289]
[1747440490978,16.8669532,2526.0,2525.0,3.9602393]
[1747440491649,16.8669532,2526.0,2524.8,4.51059904]
[1747440491650,3.95925804,2525.8,2524.8,4.51059904]
[1747440491846,3.95957524,2525.6,2524.6,16.69799768]
[1747440492065,3.95954869,2525.6,2524.6,16.69799768]
[1747440492859,3.95763938,2526.8,2525.0,3.96025236]
[1747440493172,3.95894694,2526.0,2525.1,3.96023144]
[1747440493375,12.8,2525.9,2525.1,3.96023144]
[1747440493787,3.95865005,2526.2,2525.2,3.9599785]
[1747440494090,16.0,2530.1,2525.4,8.0]
[1747440494091,12.874,2527.4,2525.4,8.0]
[1747440494240,3.95735557,2527.0,2525.6,0.55]
[1747440494448,3.95804276,2526.6,2525.7,3.95929435]
[1747440494745,3.95812283,2526.5,2525.7,3.95929435]
[1747440495892,8.0,2527.1,2525.8,3.95911084]
[1747440496180,8.0,2527.1,2526.1,0.802]
[1747440496181,3.95780679,2526.7,2526.1,0.802]
[1747440496346,12.808,2527.0,2526.1,0.802]
[1747440496541,12.808,2527.0,2525.5,0.802]
[1747440496542,3.95882936,2526.0,2525.5,0.802]
[1747440496949,3.95823671,2526.4,2525.5,0.802]
[1747440497251,3.95845556,2526.3,2525.8,0.802]
[1747440497446,12.811,2526.5,2525.9,3.95897044]
[1747440497647,3.95792237,2526.6,2525.9,3.95897044]
[1747440497846,12.801,2526.5,2525.9,3.95897044]
[1747440498183,16.75909098,2526.5,2525.9,3.95897044]
[1747440498382,12.774,2526.5,2525.8,0.802]
[1747440498583,12.761,2526.5,2526.0,3.95878093]
[1747440498783,12.761,2526.5,2525.8,0.802]
[1747440498987,16.71909792,2526.5,2525.4,3.95973031]
[1747440499284,3.95820139,2526.4,2525.3,4.76187127]
[1747440499453,3.95868237,2526.1,2525.4,3.95976874]
[1747440499654,3.95879467,2526.1,2525.3,0.802]
[1747440499859,3.95909885,2525.9,2525.3,0.802]
[1747440500082,3.95879467,2526.1,2525.0,20.741]
[1747440500083,12.736,2526.0,2525.0,0.005]
[1747440500287,3.96023919,2525.1,2525.0,0.005]
[1747440500483,29.51623919,2525.1,2525.0,0.005]
[1747440501485,39.88623919,2525.1,2525.0,0.005]
[1747440501670,14.33023919,2525.1,2525.0,0.005]
[1747440501870,11.96023919,2525.1,2525.0,0.005]
[1747440502073,37.47923919,2525.1,2525.0,0.005]
[1747440502487,39.84923919,2525.1,2525.0,0.005]
[1747440502693,40.20715767,2525.1,2525.0,0.005]
[1747440502855,40.75715767,2525.1,2525.0,0.005]
[1747440503048,40.16715767,2525.1,2525.0,0.005]
[1747440503253,54.89415767,2525.1,2525.0,0.005]
[1747440503497,57.26415767,2525.1,2525.0,0.005]
[1747440503985,0.35791848,2525.1,2525.0,0.005]
[1747440504494,12.733,2525.5,2525.0,3.96536249]
[1747440504660,12.73,2525.9,2525.0,0.39653625]
[1747440504886,12.73,2525.9,2525.4,3.95966842]
[1747440505207,16.67786113,2526.0,2525.4,3.95966842]
[1747440505395,3.95940602,2525.7,2524.7,13.291]
[1747440505599,3.95940602,2525.7,2525.0,3.96027892]
[1747440506310,16.63176895,2526.1,2525.4,3.95972801]
[1747440506673,12.656,2526.3,2525.5,3.05742711]
[1747440506901,3.95837184,2526.3,2525.6,3.95945517]
[1747440507109,16.60337184,2526.3,2525.7,3.95924737]
[1747440507284,17.9042,2527.1,2526.0,3.95872842]
[1747440507503,3.95796262,2526.6,2525.9,3.95886089]
[1747440508219,12.631,2527.0,2525.9,0.79181593]
[1747440508220,3.95737418,2527.0,2525.9,0.79181593]
[1747440508387,12.74,2527.4,2526.3,3.95823656]
[1747440508579,3.9573955,2527.0,2526.3,3.95823656]
[1747440509118,3.95684328,2527.3,2526.6,3.95779142]
[1747440509411,16.52290202,2527.3,2526.6,3.95779142]
[1747440509578,16.52290202,2527.3,2526.7,3.95767247]
[1747440509773,3.95690202,2527.3,2526.7,4.75967247]
[1747440509976,3.95690202,2527.3,2526.7,0.802]
[1747440510175,3.95721711,2527.1,2526.7,0.802]
[1747440510392,3.95722856,2527.1,2526.7,0.802]
[1747440510716,3.95700345,2527.2,2526.7,0.802]
[1747440510893,3.9569484,2527.2,2526.7,0.802]
[1747440511095,3.95713222,2527.1,2526.7,0.802]
[1747440511503,3.95698925,2527.2,2526.7,0.802]
[1747440511703,16.43598925,2527.2,2526.7,0.802]
[1747440512175,3.95698925,2527.2,2526.7,0.802]
[1747440512374,3.95698925,2527.2,2526.6,3.43523605]
[1747440513225,3.9569484,2527.2,2526.5,3.95797895]
[1747440513388,12.417,2527.3,2525.9,0.79181593]
[1747440513591,3.957846,2526.7,2526.0,3.95882818]
[1747440513918,12.403,2526.7,2525.6,3.95934767]
[1747440514086,3.95826242,2526.4,2525.4,12.486]
[1747440514284,3.95826242,2526.4,2525.7,3.95915414]
[1747440514593,3.95826242,2526.4,2525.8,3.95911641]
[1747440514916,10.08,2527.0,2526.0,3.95873513]
[1747440515103,12.354,2526.9,2525.6,0.55]
[1747440515438,10.08,2527.1,2526.2,4.7430063]
[1747440515587,3.95747258,2526.9,2526.3,3.95826205]
[1747440515782,16.28731443,2527.0,2526.4,3.95816363]
[1747440515985,11.95741818,2526.9,2525.6,0.7845]
[1747440516182,3.95945372,2525.7,2525.1,0.7845]
[1747440516592,16.28619377,2525.8,2525.1,0.7845]
[1747440516917,3.95931951,2525.7,2525.2,3.95995771]
[1747440517083,3.95974054,2525.5,2525.1,0.7845]
[1747440517284,3.96008397,2525.2,2524.6,3.96091157]
[1747440517485,12.327,2525.8,2524.6,0.7845]
[1747440517687,3.9607983,2524.8,2524.6,0.7845]
[1747440517903,3.96064366,2524.9,2524.6,0.7845]
[1747440518219,16.24651078,2525.0,2524.6,0.7845]
[1747440518426,0.8251,2525.7,2524.7,0.55]
[1747440518629,12.257,2525.9,2524.9,0.55]
[1747440518786,12.257,2525.9,2525.5,3.95958605]
[1747440519111,3.95884435,2526.0,2525.4,3.95973626]
[1747440519985,2.66209992,2527.2,2525.1,12.485]
[1747440519986,3.95844698,2526.3,2525.5,4.74409368]
[1747440520182,12.215,2526.2,2525.6,3.95934546]
[1747440520385,12.215,2526.2,2525.5,0.7845]
[1747440520636,3.95889485,2526.0,2525.5,0.7845]
[1747440520996,16.17353748,2526.2,2525.5,0.7845]
[1747440521421,16.17353748,2526.2,2525.5,4.74411091]
[1747440521599,12.215,2526.2,2525.5,4.74411091]
[1747440522332,0.8251,2526.8,2525.5,0.7845]
[1747440522627,12.134,2526.8,2526.3,3.95825033]
[1747440522809,12.134,2526.8,2525.7,0.55]
[1747440523009,27.9314,2527.7,2526.6,3.95780904]
[1747440523227,27.9314,2527.7,2526.7,3.95766369]
[1747440523228,3.95671029,2527.4,2526.7,3.95766369]
[1747440523430,2.37,2527.3,2526.7,3.95759666]
[1747440523602,2.37,2526.9,2526.4,0.7805]
[1747440523807,3.95688932,2527.3,2526.4,4.73854736]
[1747440524002,3.95688932,2527.3,2526.6,3.95776984]
[1747440524003,12.104,2527.1,2526.6,3.95776984]
[1747440524195,12.104,2527.1,2526.4,4.73854736]
[1747440524196,16.06112486,2527.1,2526.5,3.95800423]
[1747440524392,2.37,2527.0,2526.5,3.95800423]
[1747440524592,2.37,2527.0,2526.6,3.95775869]
[1747440524812,6.32766791,2526.8,2526.4,0.7805]
[1747440525012,2.37,2526.8,2526.4,0.7805]
[1747440525212,2.37,2526.8,2526.5,3.9580166]
[1747440526032,2.37,2527.0,2526.5,3.9580166]
[1747440526216,2.37,2527.0,2526.7,3.95772381]
[1747440526412,2.37,2527.0,2526.7,3.95766569]
[1747440527929,12.027,2527.1,2526.7,3.95766569]
[1747440529034,12.027,2527.1,2526.8,3.95749325]
[1747440529342,12.027,2527.1,2526.4,0.7805]
[1747440529513,15.98411581,2527.1,2526.4,0.7805]
[1747440529707,3.95726157,2527.0,2526.4,0.7805]
[1747440529912,3.95726157,2527.0,2526.4,4.73868667]
[1747440530122,11.904,2527.0,2526.8,3.95747261]
[1747440530430,11.895,2527.1,2526.4,0.7805]
[1747440530629,11.895,2527.1,2526.7,3.95758883]
[1747440530837,15.85213013,2527.1,2526.4,0.7805]
[1747440531062,3.95739182,2527.0,2526.4,0.7805]
[1747440531234,15.85215737,2527.1,2526.4,4.73870006]
[1747440531616,11.865,2527.0,2526.6,3.95779965]
[1747440532027,11.865,2527.0,2526.7,3.95769562]
[1747440532227,3.95664546,2527.4,2526.4,0.7805]
[1747440532715,11.843,2527.3,2526.4,0.7805]
[1747440533120,3.95674286,2527.4,2526.8,3.95743361]
[1747440533323,11.821,2527.2,2526.7,3.9576315]
[1747440533715,11.809,2527.1,2526.7,3.9576315]
[1747440534036,3.95766267,2526.8,2526.2,3.9584134]
[1747440534236,27.9314,2527.7,2526.2,0.79171112]
[1747440534237,10.8384,2527.7,2526.2,0.79171112]
[1747440534400,10.08,2527.7,2526.5,0.7805]
[1747440534603,10.08,2527.7,2526.7,0.55]
[1747440534818,11.788,2527.6,2526.9,0.55]
[1747440535147,11.78,2527.7,2527.4,3.9564811]
[1747440535331,11.771,2527.8,2526.7,0.55]
[1747440535532,11.771,2527.8,2527.4,3.95654662]
[1747440535733,3.95561448,2528.1,2527.5,3.95636872]
[1747440536080,11.76,2527.8,2527.4,3.95653069]
[1747440536416,10.08,2528.2,2527.3,4.50679183]
[1747440536749,3.9550162,2528.5,2527.8,3.95585296]
[1747440536949,11.82,2528.9,2527.3,0.55]
[1747440536950,11.726,2528.4,2527.3,0.55]
[1747440537158,3.95522683,2528.3,2527.7,3.95613808]
[1747440537641,3.95538422,2528.2,2527.6,3.95626066]
[1747440537971,3.95571593,2528.0,2527.3,8.55]
[1747440538254,11.68,2528.1,2527.6,3.95631756]
[1747440538817,3.95509486,2528.4,2527.7,0.55]
[1747440539013,3.95548574,2528.2,2527.7,0.55]
[1747440539219,11.658,2528.3,2527.6,3.95631756]
[1747440539220,15.61329527,2528.3,2527.6,0.55]
[1747440539550,11.637,2528.3,2527.8,3.95599668]
[1747440540056,3.95538968,2528.2,2527.7,0.55]
[1747440540257,3.95538455,2528.2,2527.7,0.55]
[1747440540561,11.617,2528.4,2527.8,0.55]
[1747440540723,3.95585329,2527.9,2527.3,11.95673586]
[1747440541077,3.95575408,2528.0,2527.4,4.50654646]
[1747440541256,15.57210639,2528.4,2527.4,0.55]
[1747440541556,17.94210719,2528.4,2527.4,0.55]
[1747440541775,17.94210719,2528.4,2527.2,0.765]
[1747440541776,3.9558941,2527.9,2527.2,0.765]
[1747440541937,13.932,2527.8,2526.7,0.8181]
[1747440542116,3.95672516,2527.4,2526.7,0.8181]
[1747440542337,3.95672516,2527.4,2526.8,3.95749229]
[1747440542543,3.95665433,2527.4,2526.9,3.95733524]
[1747440542737,3.95665433,2527.4,2526.9,0.55]
[1747440543677,15.5075423,2527.5,2526.9,4.50738287]
[1747440543885,11.494,2527.7,2527.3,3.95677081]
[1747440544085,17.084,2528.3,2527.1,11.499]
[1747440544242,8.0,2528.5,2527.6,0.55]
[1747440544442,3.95555578,2528.1,2527.6,0.55]
[1747440544649,3.95522683,2528.3,2527.7,0.55]
[1747440544958,15.42429609,2528.3,2527.7,4.50616044]
[1747440545153,11.469,2528.3,2527.6,0.55]
[1747440545554,3.9559486,2527.9,2527.4,4.50659931]
[1747440545753,11.469,2528.3,2527.7,3.95615854]
[1747440545979,15.42433093,2528.3,2527.7,3.95615854]
[1747440546186,11.439,2528.2,2527.7,3.95615854]
[1747440546753,3.95539495,2528.2,2527.6,4.50628121]
[1747440547072,3.95539495,2528.2,2527.6,0.55]
[1747440547274,11.408,2528.3,2527.4,0.55]
[1747440547597,3.95627558,2527.7,2527.4,0.55]
[1747440547738,3.95596012,2527.9,2527.4,0.55]
[1747440547944,11.38,2528.1,2527.4,0.55]
[1747440548291,3.95547546,2528.2,2527.6,4.50625424]
[1747440548492,3.95538327,2528.2,2527.6,0.55]
[1747440548782,3.95538327,2528.2,2527.3,4.75868302]
[1747440548783,3.95617776,2527.7,2527.4,0.55]
[1747440548997,3.95663527,2527.4,2526.9,0.8174]
[1747440550184,3.95666337,2527.4,2526.9,0.8174]
[1747440550357,3.95697161,2527.2,2526.6,17.088]
[1747440550677,13.7,2527.5,2527.0,3.95724088]
[1747440550858,13.7,2527.5,2526.8,3.95742629]
[1747440551189,2.374,2527.2,2526.5,0.8174]
[1747440551351,6.33135048,2527.0,2526.5,0.8174]
[1747440551549,11.318,2527.2,2526.6,0.55]
[1747440551754,2.374,2527.4,2527.0,3.95724729]
[1747440551973,3.95616568,2527.7,2527.1,3.95709513]
[1747440552279,14.03569432,2528.1,2527.5,4.77374552]
[1747440552655,3.95540407,2528.2,2527.6,4.50623014]
[1747440552656,3.95542027,2528.2,2527.6,4.50623014]
[1747440552856,3.95555382,2528.1,2527.6,0.55]
[1747440553171,3.95544111,2528.2,2527.6,4.50629264]
[1747440554186,2.374,2528.3,2527.6,0.55]
[1747440554480,3.95589873,2527.9,2527.6,0.55]
[1747440554686,3.95575357,2528.0,2527.6,0.55]
[1747440555887,3.95567747,2528.1,2527.6,0.55]
[1747440556127,3.95540018,2528.2,2527.6,4.50623719]
[1747440556902,3.95573769,2528.0,2527.6,0.55]
[1747440557469,0.8247,2530.6,2527.8,3.95600917]
[1747440557672,3.95244543,2530.1,2529.3,3.953633]
[1747440557874,3.95304309,2529.7,2529.5,0.55]
[1747440558121,3.71411835,2530.7,2529.4,0.7607]
[1747440558272,11.582,2530.4,2529.4,0.7607]
[1747440558605,11.579,2530.3,2529.5,3.95328665]
[1747440558808,11.94156304,2530.3,2529.6,3.95308653]
[1747440559173,0.36256304,2530.3,2529.5,0.55]
[1747440559376,0.36256304,2530.3,2529.9,3.95268507]
[1747440559569,0.36256304,2530.3,2529.6,3.95319418]
[1747440559774,0.36256304,2530.3,2529.9,0.55]
[1747440560092,11.549,2530.4,2529.9,0.55]
[1747440560289,3.95213443,2530.3,2529.7,4.50303606]
[1747440560610,15.50095907,2530.4,2529.7,4.50299001]
[1747440561395,15.50095907,2530.4,2529.5,16.77377117]
[1747440561396,11.549,2530.4,2529.6,0.55]
[1747440561586,11.549,2530.4,2529.5,12.82042713]
[1747440561587,11.477,2530.4,2529.9,0.55]
[1747440561798,11.475,2530.4,2530.0,3.95252832]
[1747440561998,11.462,2530.6,2529.8,0.55]
[1747440562210,11.462,2530.6,2530.2,3.95219239]
[1747440562383,0.7993,2531.3,2530.3,3.95207672]
[1747440562384,11.95108947,2531.0,2530.3,3.95207672]
[1747440562709,3.95074724,2531.2,2530.5,3.95168121]
[1747440563011,3.95086962,2531.1,2530.5,3.95168121]
[1747440563172,0.7993,2531.3,2530.2,9.3044]
[1747440563370,11.446,2531.4,2530.5,3.95178818]
[1747440563575,15.3964137,2531.4,2530.5,3.95178818]
[1747440563771,3.95068653,2531.3,2530.6,4.50149292]
[1747440564011,11.446,2531.4,2530.5,0.55]
[1747440564196,11.446,2531.4,2530.4,0.55]
[1747440564396,11.446,2531.4,2530.6,4.50153204]
[1747440564712,3.95064362,2531.3,2530.6,4.50156778]
[1747440564911,11.446,2531.4,2530.6,4.50156778]
[1747440565212,3.95082975,2531.2,2530.6,0.55]
[1747440565390,8.0,2531.8,2530.6,0.55]
[1747440565593,3.95075627,2531.2,2530.6,0.55]
[1747440566280,8.0,2531.6,2530.6,0.55]
[1747440566598,11.39,2531.5,2530.3,4.50210054]
[1747440566797,11.39,2531.5,2530.6,0.55]
[1747440567816,3.95086407,2531.1,2530.6,0.55]
[1747440567989,11.39,2531.5,2530.5,0.55]
[1747440568194,3.95084029,2531.2,2530.5,4.50177816]
[1747440568405,11.39,2531.5,2530.3,0.55]
[1747440568603,8.7712,2531.4,2530.3,0.55]
[1747440568812,3.95141105,2530.8,2530.3,0.55]
[1747440569292,3.95141105,2530.8,2530.2,0.7544]
[1747440569611,11.321,2530.9,2530.2,0.7544]
[1747440569817,3.95161239,2530.7,2530.2,0.75193156]
[1747440570011,3.95135362,2530.8,2530.2,0.75193156]
[1747440570219,15.27217233,2530.9,2530.2,0.75193156]
[1747440570519,3.95152099,2530.7,2530.2,0.75193156]
[1747440571213,3.95163912,2530.6,2530.2,0.75193156]
[1747440571720,11.321,2530.9,2530.2,0.75193156]
[1747440571893,3.95147587,2530.7,2529.2,0.29922756]
[1747440572092,3.95197639,2530.4,2529.3,11.485]
[1747440572317,3.95259122,2530.0,2529.4,3.95350526]
[1747440572685,3.95259122,2530.0,2529.5,0.55]
[1747440572888,3.95259122,2530.0,2529.4,4.73490526]
[1747440573229,3.95205038,2530.4,2529.8,3.95283885]
[1747440573519,11.204,2530.5,2530.0,3.95248566]
[1747440573821,15.15579996,2530.5,2530.0,3.95248566]
[1747440574315,11.204,2530.5,2530.0,3.95248566]
[1747440574518,15.15579936,2530.5,2530.0,3.95248566]
[1747440575426,3.9514787,2530.7,2530.0,3.95248566]
[1747440575427,8.0,2530.8,2530.0,0.55]
[1747440575719,15.09768162,2530.6,2530.1,3.95238059]
[1747440576131,11.146,2530.6,2530.1,3.95238059]
[1747440576597,15.0976472,2530.6,2530.0,4.50250785]
[1747440576783,15.0976472,2530.6,2530.0,4.54202904]
[1747440576983,11.95135219,2530.8,2530.1,3.95236238]
[1747440577215,3.95135219,2530.8,2530.2,5.2835227]
[1747440577422,3.95135219,2530.8,2530.2,5.28356494]
[1747440579013,3.95179848,2530.5,2530.2,1.3314]
[1747440579207,13.445,2530.9,2530.2,1.3314]
[1747440579208,3.95170361,2530.6,2530.2,1.3314]
[1747440579729,3.95184546,2530.5,2530.2,1.3314]
[1747440579938,2.374,2530.7,2530.2,0.7814]
[1747440580143,3.95191782,2530.5,2530.2,0.7814]
[1747440580444,3.95194636,2530.4,2530.1,0.55]
[1747440580735,6.32580552,2530.5,2530.0,11.144]
[1747440581641,6.32580552,2530.5,2530.0,15.09652625]
[1747440583843,6.32557725,2530.7,2530.1,0.55]
[1747440584164,3.95166462,2530.6,2530.1,0.55]
[1747440584453,3.95179202,2530.5,2530.1,0.55]
[1747440584607,3.95283927,2529.9,2529.4,11.144]
[1747440584808,3.95283927,2529.9,2529.5,0.55]
[1747440585035,3.95261278,2530.0,2529.5,0.55]
[1747440585542,3.95242498,2530.1,2529.6,3.95309016]
[1747440585743,0.824,2530.5,2529.7,0.55]
[1747440585931,14.79505447,2530.4,2529.8,3.95280276]
[1747440586239,3.95147587,2530.7,2530.1,0.55]
[1747440586539,3.95190591,2530.5,2530.1,0.55]
[1747440586963,3.95190591,2530.5,2528.1,0.8282]
[1747440586964,0.7676,2530.2,2528.1,0.8282]
[1747440587112,2.374,2528.8,2528.1,0.8282]
[1747440587312,3.95491398,2528.5,2528.1,0.8282]
[1747440587513,3.95538327,2528.2,2528.1,0.8282]
[1747440587849,3.95466431,2528.7,2527.3,4.78498413]
[1747440588054,3.95475757,2528.6,2527.4,8.47849841]
[1747440588226,3.95524925,2528.3,2527.6,3.95622617]
[1747440588427,8.0,2528.7,2527.4,0.47849841]
[1747440588631,3.9550108,2528.5,2527.9,4.50582266]
[1747440588844,3.9550108,2528.5,2527.9,3.95582266]
[1747440589222,3.95497167,2528.5,2528.0,0.55]
[1747440589756,3.95496073,2528.5,2527.9,10.842]
[1747440589953,3.95496073,2528.5,2528.0,0.55]
[1747440590849,3.95482024,2528.6,2528.0,0.55]
[1747440591053,3.95475757,2528.6,2528.0,4.50566667]
[1747440591261,3.95494956,2528.5,2528.1,0.8059]
[1747440592228,3.95508508,2528.4,2528.1,0.8059]
[1747440594167,0.7529,2529.5,2528.2,0.55]
[1747440594326,3.95426486,2529.0,2528.4,0.55]
[1747440594758,3.95426486,2529.0,2528.1,4.76143462]
[1747440594759,3.95379805,2529.3,2528.6,0.55]
[1747440595063,3.95379805,2529.3,2527.9,8.0]
[1747440595064,0.7529,2527.3,2526.2,4.157]
[1747440595291,15.03803383,2527.2,2525.8,2.37779805]
[1747440595561,3.95855319,2526.2,2525.8,1.43962097]
[1747440595759,3.95863487,2526.2,2525.8,0.8059]
[1747440596365,3.95822109,2526.4,2525.8,0.8059]
[1747440596680,3.95807341,2526.5,2525.8,4.7649938]
[1747440596838,3.95824455,2526.4,2525.8,4.7649938]
[1747440597227,3.95804472,2526.5,2525.8,0.8059]